Cogmind - Beta 17.1 @@@ ROGUE MODE // 2026.09.08 @ 08:50:08 Player: MolePlayingNice Result: Self-destructed Performance ------------- Evolutions (6) 3000 Regions Visited (16) 3200 Robots Destroyed (261) 1305 Value Destroyed (11574) 11574 Prototype IDs (19) 380 Alien Tech Used (0) 0 Bonus (2587) 2587 TOTAL SCORE: 22046 Bonus ------- High Alert Combat Kills 2578 Follower Combat Kills 2018 Entered Garrisons 200 Network Hubs Disabled 400 Built Enhanced Grunts 300 Met R17 at Cetus 500 Friendly Fire -3409 Cogmind --------- Core Integrity 802/1150 Matter 131/300 Energy 375/375 System Corruption 40% Temperature Cool (0) Movement Rolling (170) Ox4 Location -4/Factory Parts ------- > --- POWER (2) -------- Micro Fission Core Antimatter Reactor > --- PROPULSION (5) --- Centrium Wheel > --- UTILITY (8) ------ Advanced Cooling System Advanced Cooling System Large Storage Unit Advanced Terrain Scanner Advanced Terrain Scan Processor Experimental Targeting Computer Core Analyzer Advanced Transmission Jammer > --- WEAPON (4) ------- Enhanced Gauss Cannon Enhanced Gauss Cannon Heavy Gauss Cannon > --- INVENTORY (15) --- Light Antimatter Reactor Myomer Leg Experimental Heat Sink Advanced Cooling System Matter Compressor (250) Long-range Sensor Array Advanced Recoil Stabilizer Medium Regenerative Plating Improved Shield Generator Long-range Tractor Beam Long-range Proton Cannon Mass Driver Enhanced Gauss Cannon Heavy Rocket Launcher Peak State ------------ > --- POWER ------------ Cooled Fission Core Particle Reactor > --- PROPULSION ------- Enhanced Flexi-carbon Leg Enhanced Armored Leg Enhanced Armored Leg Experimental Flexi-carbon Leg Experimental Flexi-carbon Leg > --- UTILITY ---------- Advanced Cooling System Large Storage Unit Long-range Sensor Array Advanced Terrain Scan Processor Experimental Targeting Computer Core Analyzer Advanced Transmission Jammer Medium Regenerative Plating > --- WEAPON ----------- Advanced Plasma Cannon Advanced Plasma Cannon Matter Neutralizer Magnetic Acceleration Cannon > --- INVENTORY -------- Experimental Flexi-carbon Leg Advanced Cryofiber Web Improved Cooling System Improved Cooling System Advanced Cooling System Matter Compressor Advanced Terrain Scanner Advanced Recoil Stabilizer Long-range Tractor Beam Long-range Proton Cannon Matter Neutralizer Heavy Flak Cannon Heavy Rocket Launcher [Rating: 125] Favorites ----------- Power Heavy Ion Engine Engine Heavy Ion Engine Power Core Neutrino Core Reactor Particle Reactor Propulsion Carbon-fiber Leg Leg Carbon-fiber Leg Wheel Centrium Wheel Utility Large Storage Unit Device Improved Heat Sink Storage Large Storage Unit Processor Core Analyzer Hackware Improved Hacking Suite Protection Medium Regenerative Plating Weapon Advanced Beam Cannon Energy Gun Medium Laser Energy Cannon Advanced Beam Cannon Ballistic Cannon Gauss Cannon Launcher Heavy Rocket Launcher Impact Weapon Powered Hammer Piercing Weapon Spear Build | -11 -10 -9 -9 -8 -8 -8 -7 -6 -5 -5 -5 -5 -5 -4 -4 -4 ------- Run | Yrd Mat Mat Sto Mat Gar Mat Fac Fac Fac Ext Cet Arc Hub Fac Was Fac Slots Evolved 12 | . . 2 . 2 . . 2 2 2 . . . . 2 . . Power 1 | . . . . . . . . . . . . . . 1 . . Propulsion 3 | . . 1 . 1 . . . . 1 . . . . . . . Utility 6 | . . 1 . . . . 2 2 1 . . . . . . . Weapon 2 | . . . . 1 . . . . . . . . . 1 . . Parts Attached 152 | . 3 6 10 2 11 7 15 10 4 19 6 3 14 11 5 26 Power 16 | . . 1 2 . . . 1 1 . 3 . 1 1 1 1 4 Engine 5 | . . 1 2 . . . 1 . . 1 . . . . . . Core 5 | . . . . . . . . 1 . 2 . . . 1 . 1 Reactor 6 | . . . . . . . . . . . . 1 1 . 1 3 Propulsion 41 | . . 2 3 1 4 4 2 1 1 8 . . 6 3 . 6 Treads . | . . . . . . . . . . . . . . . . . Leg 40 | . . 2 3 1 4 4 2 1 1 8 . . 6 3 . 5 Wheel 1 | . . . . . . . . . . . . . . . . 1 Hover . | . . . . . . . . . . . . . . . . . Flight . | . . . . . . . . . . . . . . . . . Utility 57 | . 2 2 2 . 1 1 8 6 3 5 4 2 4 7 3 7 Device 31 | . 1 1 2 . 1 1 2 2 2 1 2 2 2 5 3 4 Storage 3 | . 1 . . . . . . . . . . . 1 . . 1 Processor 10 | . . . . . . . 3 4 1 . . . . . . 2 Hackware 4 | . . . . . . . . . . 1 . . 1 2 . . Protection 9 | . . 1 . . . . 3 . . 3 2 . . . . . Artifact . | . . . . . . . . . . . . . . . . . Weapon 38 | . 1 1 3 1 6 2 4 2 . 3 2 . 3 . 1 9 Energy Gun 2 | . . . . . 1 . . . . . . . . . . 1 Energy Cannon 18 | . . . 3 . 3 1 . 2 . 2 1 . 3 . 1 2 Ballistic Gun . | . . . . . . . . . . . . . . . . . Ballistic Cannon 14 | . 1 1 . 1 . 1 2 . . 1 1 . . . . 6 Launcher 2 | . . . . . 1 . 1 . . . . . . . . . Special Weapon . | . . . . . . . . . . . . . . . . . Impact Weapon 1 | . . . . . 1 . . . . . . . . . . . Slashing Weapon . | . . . . . . . . . . . . . . . . . Piercing Weapon 1 | . . . . . . . 1 . . . . . . . . . Special Melee Weapon . | . . . . . . . . . . . . . . . . . Unidentified Prototypes 16 | . . . 3 . . . . 1 . . 3 . 6 2 . 1 Corrupted Parts 3 | . . . . . . . . . . . 1 1 1 . . . System Corruption 16 | . . . . . . . . . . . 4 2 10 . . . Parts Lost 31 | . . . . . 4 1 . 1 . 2 . . 3 . . 20 Power 5 | . . . . . . . . . . 1 . . . . . 4 Propulsion 12 | . . . . . 2 . . 1 . . . . . . . 9 Utility 2 | . . . . . . . . . . 1 . . 1 . . . Weapon 12 | . . . . . 2 1 . . . . . . 2 . . 7 Highest Loss Streak 5 | . . . . . 2 1 . 1 . 2 . . 1 . . 5 To Critical Strikes . | . . . . . . . . . . . . . . . . . Average Backups 13 | 6 4 10 13 14 14 14 14 14 14 14 14 15 14 13 15 13 Power 1 | 1 1 2 1 1 1 1 1 1 1 1 1 1 1 1 1 . Propulsion 1 | 4 . 1 1 2 2 4 2 1 . . 1 1 1 1 1 . Utility 5 | . . 1 1 2 2 2 6 5 7 6 6 7 7 8 10 8 Weapon 5 | 1 2 6 8 8 7 6 5 6 5 6 6 5 4 2 3 4 Tool/Special . | . . . . . . . . . . . . . . . . . Unused Backups 57 | . 10 3 7 . 2 2 10 . . 5 . 2 3 2 1 10 Power 10 | . 1 2 2 . . . 1 . . 1 . 2 . . . 1 Propulsion 14 | . 6 . 1 . . 2 2 . . . . . 1 2 . . Utility 18 | . 2 1 . . . . 5 . . 3 . . 1 . 1 5 Weapon 15 | . 1 . 4 . 2 . 2 . . 1 . . 1 . . 4 Tool/Special . | . . . . . . . . . . . . . . . . . Average Slot Usage (%) 98 | . 91 99 100 95 99 100 97 99 99 99 99 100 99 99 100 94 Engine 3 | . 14 11 11 9 9 9 7 2 . . . . . . . . Core 1 | . . . . . . . . 3 5 4 5 . . 3 5 3 Reactor 1 | . . . . . . . . . . . . 4 5 6 5 6 Leg 29 | . 28 33 33 31 35 36 30 26 29 29 29 29 29 26 26 21 Device 12 | . 6 12 17 18 18 18 9 12 11 10 10 11 11 11 13 15 Storage 6 | . 14 11 11 9 9 9 7 6 5 5 5 5 5 5 5 5 Processor 13 | . . . . . . . 12 20 22 23 23 23 22 15 15 15 Protection 3 | . . 9 4 . . . 5 6 5 5 5 5 4 3 1 3 Energy Cannon 10 | . . . 16 18 18 18 11 6 5 7 6 11 11 9 15 9 Ballistic Cannon 8 | . 8 19 5 9 6 8 9 13 11 8 10 5 4 9 5 8 Peak Build Rating 125 | 6 10 17 25 27 33 37 48 63 74 83 90 92 106 121 122 125 Average Rating 68 | 6 7 15 20 25 28 34 44 56 72 77 86 89 97 117 117 115 On Entrance 54 | 6 6 10 16 22 27 33 37 47 63 73 83 86 89 96 120 115 Avg Prop Armor Cover (%) 12 | . . . . . . . . . . . . . 12 . . . Naked Turns . | . . . . . . . . . . . . . . . . . Heaviest Build 105 | 14 31 38 42 43 43 45 58 60 59 68 70 74 77 97 98 105 Greatest Support 119 | 20 20 30 39 52 52 61 64 69 89 98 94 94 107 119 114 114 Greatest Overweight (x) 4 | . 1 1 1 1 1 . . . . . . . 1 . . 4 Average Overweight (x) . | . . 1 . . . . . . . . . . . . . . Largest Inventory Capacity 15 | 8 15 15 15 15 15 15 15 15 15 15 15 15 15 15 15 15 Average Capacity 14 | 8 14 15 15 15 15 15 15 15 15 15 15 15 15 15 15 15 Most Carried 15 | 6 10 14 15 14 15 15 15 15 15 15 15 15 15 15 15 15 Average Carried 13 | 6 4 10 13 13 14 14 14 14 13 14 14 14 14 13 14 13 Final Capacity 15 | 8 15 15 15 15 15 15 15 15 15 15 15 15 15 15 15 15 Final Carried 15 | 6 10 12 15 14 15 15 15 15 15 15 15 15 14 15 15 14 Class Distribution -------------------- 26% | Gunner 22% | Scavenger-Gunner 15% | Commander-Gunner 12% | Mutant 12% | Skirmisher 4% | Commander-Skirmisher Dominant Class ---------------- Mutant | -10/Materials Mutant | -9/Materials Mutant | -9/Storage Mutant | -8/Materials Gunner | -8/Garrison Gunner | -8/Materials Skirmisher | -7/Factory Gunner | -6/Factory Skirmisher | -5/Factory Commander-Gunner | -5/Extension Commander-Gunner | -5/Cetus Commander-Gunner | -5/Archives Scavenger-Gunner | -5/Hub_04(d) Hacker-Gunner | -4/Factory Scavenger-Gunner | -4/Waste Scavenger-Gunner | -4/Factory Resources | -11 -10 -9 -9 -8 -8 -8 -7 -6 -5 -5 -5 -5 -5 -4 -4 -4 ----------- Run | Yrd Mat Mat Sto Mat Gar Mat Fac Fac Fac Ext Cet Arc Hub Fac Was Fac Matter Collected 7265 | 200 82 88 246 . 432 549 574 192 . 1098 365 73 783 844 162 1577 Remotely 672 | . . . . . . . . . . . . . . 385 . 287 Salvage Created 12792 | . 181 48 607 . 953 781 682 240 . 1267 357 143 2013 895 1652 2973 Parts 490 | . 8 1 34 . 54 42 32 12 . 41 16 13 68 22 20 127 Haulers Intercepted 10 | . . . 3 . . 1 1 1 . . . . 2 1 . 1 Recyclers Shooed 14 | . . . 1 . . 3 . . . 1 . . 2 1 . 6 Parts Field Recycled . | . . . . . . . . . . . . . . . . . Retrieved Matter . | . . . . . . . . . . . . . . . . . Parts Self-Destructed . | . . . . . . . . . . . . . . . . . Prevented . | . . . . . . . . . . . . . . . . . Parts Restored . | . . . . . . . . . . . . . . . . . Kills | -11 -10 -9 -9 -8 -8 -8 -7 -6 -5 -5 -5 -5 -5 -4 -4 -4 ------- Run | Yrd Mat Mat Sto Mat Gar Mat Fac Fac Fac Ext Cet Arc Hub Fac Was Fac Combat Hostiles Destroyed 194 | . 5 2 11 . 27 18 10 4 . 22 2 1 27 16 6 43 Guns 3 | . 3 . . . . . . . . . . . . . . . Cannons 151 | . 2 2 11 . 22 16 5 3 . 19 2 1 20 10 4 34 AOE 23 | . . . . . 3 2 5 1 . . . . . 5 . 7 Classes Destroyed 20 | . 1 1 5 . 4 3 . 1 . 1 . . 3 . 1 . Worker 9 | . . . . . . . . . . . . . 3 1 . 5 Builder 12 | . . . . . . . . 2 . 1 . . . . . 9 Tunneler 2 | . . . . . . 1 . . . . . . . . . 1 Hauler 10 | . . . 3 . . 1 1 1 . . . . 2 1 . 1 Recycler 16 | . . . 2 . . . 4 . . 1 . . 2 . . 7 Mechanic 2 | . . . 1 . . . . . . . . . . . . 1 Operator 5 | . . . 1 . . . 1 . . . . 2 . . . 1 Watcher 6 | . . . . . . 1 1 1 . . 1 . 2 . . . Swarmer 45 | . . . 7 . 11 3 3 3 . 4 . . . 5 . 9 Grunt 64 | . 5 . 4 . 7 8 3 . . 6 . . 12 9 . 10 Brawler 2 | . . . . . . 1 . . . . . . . . . 1 Duelist 3 | . . . . . . 2 . . . . . . 1 . . . Protector 2 | . . . . . . . . . . . . . 2 . . . Sentry 31 | . . 2 . . 6 2 3 1 . 8 . 1 3 . . 5 Specialist 5 | . . . . . 1 . . . . . . . . . . 4 Hunter 16 | . . . . . 1 2 . . . . . . 5 2 . 6 Programmer 11 | . . . . . 1 . 1 . . . . . 2 . . 7 Heavy 2 | . . . . . . . . . . . . . 1 . . 1 Behemoth 1 | . . . . . . . . . . 1 . . . . . . Compactor 6 | . . . . . . . . . . . . . . . 6 . Cetus Guard 2 | . . . . . . . . . . . 2 . . . . . Lightning 1 | . . . . . . . . . . . . . 1 . . . Thug 4 | . . . . . . . . . . 3 1 . . . . . Butcher 2 | . . . . . 1 . . . . . 1 . . . . . Guerrilla 1 | . . . . . . . . . . 1 . . . . . . Best Kill Streak 14 | . 3 1 6 . 4 4 3 4 . 5 1 1 5 7 1 14 Combat Bots Only 8 | . 3 1 4 . 4 4 3 3 . 5 1 1 5 6 1 8 Max Kills in Single Turn 6 | . 1 1 1 . 2 1 3 2 . 2 2 1 2 2 1 6 Gunslinging . | . . . . . . . . . . . . . . . . . Exploded 4 | . . . . . 2 1 3 1 . . . . . 2 . 4 Melee . | . . . . . . . . . . . . . . . . . Uniques/NPCs Destroyed 1 | . . . . . . . . . . . 1 . . . . . A7 (-5/Cetus) Combat | -11 -10 -9 -9 -8 -8 -8 -7 -6 -5 -5 -5 -5 -5 -4 -4 -4 -------- Run | Yrd Mat Mat Sto Mat Gar Mat Fac Fac Fac Ext Cet Arc Hub Fac Was Fac Hostile Shots Fired 1060 | . 17 24 63 . 102 79 61 37 . 91 15 4 154 87 . 326 Missed 328 | . 7 7 15 . 26 28 32 12 . 20 4 1 38 40 . 98 Hits 732 | . 10 17 48 . 76 51 29 25 . 71 11 3 116 47 . 228 Melee 1 | . . . . . . . . . . . . . . . . 1 Projectile 731 | . 10 17 48 . 76 51 29 25 . 71 11 3 116 47 . 227 AOE 1 | . . . . . . . . . . . . . 1 . . . Critical Strikes 32 | . 1 1 . . 2 . . . . 1 3 . 9 2 . 13 Part Disruptions 1 | . . . . . . . . . . . . . 1 . . . Damage Taken 12421 | . 122 250 410 . 873 674 222 310 . 1422 355 78 2493 851 . 4361 Core 1166 | . 11 29 90 . 114 105 6 39 . 184 41 . 199 75 . 273 Absorbed by Shields 172 | . . . . . . . . . . 132 40 . . . . . Ignored by Resistances 381 | . . . . . . . . . . . . . 381 . . . Regen/Repaired (Parts) 1627 | . . . . . . . . . . . 18 28 353 758 . 470 Core Remaining (%) 82 | 100 95 . 70 . . 60 99 95 . . . . 57 . . . Volleys Fired 677 | . 13 13 46 . 84 55 34 9 11 50 63 18 78 39 32 132 Largest 4 | . 2 2 2 . 3 3 3 3 1 3 3 3 3 4 4 4 Hottest 352 | . 80 63 136 . 173 173 172 140 85 210 179 223 273 284 345 352 Shots Fired 1617 | . 26 26 91 . 192 161 76 25 11 147 86 44 200 108 86 338 Gun 15 | . 13 . . . . . . . . . . . . . . 2 Cannon 1590 | . 13 26 91 . 190 159 75 25 11 147 86 44 200 105 86 332 Launcher 12 | . . . . . 2 2 1 . . . . . . 3 . 4 Special . | . . . . . . . . . . . . . . . . . Kinetic 617 | . 13 26 12 . 53 53 32 16 . 90 39 7 56 45 7 168 Thermal 960 | . 13 . 79 . 137 106 43 9 11 57 26 37 144 60 79 159 Explosive 12 | . . . . . 2 2 1 . . . . . . 3 . 4 Electromagnetic 28 | . . . . . . . . . . . 21 . . . . 7 Robot Hit Streak 35 | . 7 11 6 . 13 7 7 7 . 19 17 6 30 10 35 13 Robot Miss Streak 10 | . 2 3 3 . 10 5 8 1 . 2 3 3 4 6 3 5 Penetration Max 1 | . . . . . . . . . . 1 1 . . . . 1 Secondary Targets . | . . . . . . . . . . . . . . . . . Shots Hit Robots 876 | . 18 16 51 . 66 83 33 14 . 101 61 21 134 53 63 162 Core Hits 476 | . 9 3 17 . 33 37 30 9 . 46 25 10 70 49 15 123 Critical Kills 19 | . . . . . 3 . . . . 3 4 . 4 1 2 2 Critical Parts Destroyed 4 | . . . . . . . . . . . 4 . . . . . Critical Strikes 57 | . 5 . 1 . 4 1 1 1 . 8 10 . 12 2 2 10 Burn 3 | . 3 . . . . . . . . . . . . . . . Meltdown 16 | . . . . . 3 . . . . 3 1 . 4 1 2 2 Destroy 8 | . . . . . . . . . . . 8 . . . . . Blast 30 | . 2 . 1 . 1 1 1 1 . 5 1 . 8 1 . 8 Melee Attacks 30 | . . . . . 25 1 4 . . . . . . . . . Impact 26 | . . . . . 25 1 . . . . . . . . . . Slashing . | . . . . . . . . . . . . . . . . . Piercing 4 | . . . . . . . 4 . . . . . . . . . Sneak Attacks 1 | . . . . . . 1 . . . . . . . . . . Combat Hostiles . | . . . . . . . . . . . . . . . . . Follow-up Attacks . | . . . . . . . . . . . . . . . . . Damage Inflicted 29215 | . 257 312 1076 . 1753 2157 1064 485 . 3363 1580 693 4334 2154 2206 7781 Guns 135 | . 135 . . . . . . . . . . . . . . . Cannons 26439 | . 122 312 1071 . 1516 1936 705 367 . 3343 1580 693 4320 1738 2206 6530 Explosions 2302 | . . . . . 237 125 334 67 . . . . . 401 . 1138 Melee 59 | . . . . . . 59 . . . . . . . . . . Ramming 280 | . . . 5 . . 37 25 51 . 20 . . 14 15 . 113 Kinetic 10267 | . 122 312 173 . 401 699 358 203 . 1988 734 117 1102 641 161 3256 Thermal 16047 | . 135 . 898 . 1115 1237 347 231 . 1355 760 576 3218 1097 2045 3033 Explosive 2235 | . . . . . 237 125 334 . . . . . . 401 . 1138 Electromagnetic 327 | . . . . . . . . . . . 86 . . . . 241 Impact 59 | . . . . . . 59 . . . . . . . . . . Slashing . | . . . . . . . . . . . . . . . . . Piercing . | . . . . . . . . . . . . . . . . . Highest Corruption 40 | . . . 3 . 1 1 . 2 . . 4 4 13 . 30 40 Average Corruption 13 | . . . 2 . 1 1 . 2 . . 4 3 11 . 19 36 Corruption Purged 6 | . . . . . . . . . . . . 6 . . . . Corruption Blocked . | . . . . . . . . . . . . . . . . . Effects 216 | . . . 12 . 8 5 . 7 . . 3 3 45 . 32 101 Message Errors 45 | . . . 3 . 2 1 . 3 . . 1 . 7 . 7 21 Matter Fused 41 | . . . 4 . 1 2 . . . . . . 13 . 7 14 Heat Flow Errors 24 | . . . . . 1 2 . 1 . . . 1 3 . 1 15 Energy Discharges 21 | . . . 1 . 3 . . 1 . . 1 . 3 . 3 9 Parts Rejected 3 | . . . . . . . . . . . . . 1 . . 2 Parts Fused 2 | . . . 1 . . . . 1 . . . . . . . . Data Loss (minor) 25 | . . . 1 . . . . 1 . . 1 1 7 . 3 11 Data Loss (major) 7 | . . . 1 . . . . . . . . . 3 . 3 . Misfires 5 | . . . . . 1 . . . . . . 1 2 . . 1 Alerts 4 | . . . . . . . . . . . . . 1 . 1 2 Misdirections 7 | . . . . . . . . . . . . . 3 . 1 3 Weapon Failures 32 | . . . 1 . . . . . . . . . 2 . 6 23 Overload Shots . | . . . . . . . . . . . . . . . . . Overflow Damage 691 | . . . 35 . 38 17 8 42 . 94 . 54 32 39 7 325 Projectiles 537 | . . . 35 . 15 17 8 . . 94 . 54 32 17 7 258 Explosions 154 | . . . . . 23 . . 42 . . . . . 22 . 67 Melee . | . . . . . . . . . . . . . . . . . Knockbacks 74 | . 5 . 1 . 3 3 1 . . 8 1 . 5 10 . 37 Impact . | . . . . . . . . . . . . . . . . . Kinetic 66 | . 5 . 1 . 3 3 1 . . 7 1 . 5 9 . 31 Secondary 8 | . . . . . . . . . . 1 . . . 1 . 6 Self-Inflicted Damage 89 | . . . . . 28 . . 59 . . . . . . . 2 Shots 4 | . . . . . 2 . . 1 . . . . . . . 1 Rammed . | . . . . . . . . . . . . . . . . . Targets Rammed 29 | . . . 2 . . 5 2 3 . 4 . . 2 1 . 10 Kicked 29 | . . . 2 . . 5 2 3 . 4 . . 2 1 . 10 Crushed . | . . . . . . . . . . . . . . . . . Highest Temperature 438 | . 117 17 315 . 204 251 382 197 72 274 152 248 368 417 204 438 Average Temperature 70 | . 47 12 128 . 41 35 103 70 22 55 42 67 69 80 56 98 Received Heat Transfer 2493 | . 87 90 84 . 252 270 33 42 . 243 36 . 507 75 . 774 Effects 5 | . . . . . . . 1 . . . . . 1 . . 3 Shutdowns 1 | . . . . . . . 1 . . . . . . . . . Energy Bleed 1 | . . . . . . . . . . . . . 1 . . . Damage (major) 3 | . . . . . . . . . . . . . . . . 3 Siege Activations . | . . . . . . . . . . . . . . . . . Martial Activations . | . . . . . . . . . . . . . . . . . Shielding Activations . | . . . . . . . . . . . . . . . . . Robots Disrupted 3 | . . . . . . . . . . . 3 . . . . . Combat Hostiles . | . . . . . . . . . . . . . . . . . Robots Corrupted . | . . . . . . . . . . . . . . . . . Combat Hostiles . | . . . . . . . . . . . . . . . . . Parts Fried 4 | . . . . . . . . . . . 2 . . . . 2 Impact Corruptions 1 | . . . . . . . . . . 1 . . . . . . Robots Melted 18 | . . . . . 3 . . . . 3 1 . 6 1 2 2 Combat Hostiles 15 | . . . . . 2 . . . . 2 . . 6 1 2 2 Parts Melted 60 | . 1 . 1 . 7 2 2 . . 9 6 . 10 7 4 11 Heat Transferred 22940 | . 629 . 1628 . 1979 2331 666 309 . 1734 601 822 4340 1650 2766 3485 Parts Sabotaged . | . . . . . . . . . . . . . . . . . Parts Stolen . | . . . . . . . . . . . . . . . . . Parts Stripped . | . . . . . . . . . . . . . . . . . Power Chain Reactions . | . . . . . . . . . . . . . . . . . Alert | -11 -10 -9 -9 -8 -8 -8 -7 -6 -5 -5 -5 -5 -5 -4 -4 -4 ------- Run | Yrd Mat Mat Sto Mat Gar Mat Fac Fac Fac Ext Cet Arc Hub Fac Was Fac Maximum Alert Level 4 | . . . . . 4 3 2 1 . 2 2 1 4 3 1 4 Low Security (%) 32 | 100 100 100 100 100 13 . . 68 100 67 . 10 17 . 33 15 Level 1 26 | . . . . . 17 . 91 31 . 5 60 89 14 . 66 23 Level 2 16 | . . . . . 13 38 8 . . 26 39 . 14 29 . 30 Level 3 17 | . . . . . 32 61 . . . . . . 30 70 . 21 Level 4 6 | . . . . . 23 . . . . . . . 22 . . 9 Level 5 . | . . . . . . . . . . . . . . . . . High Security . | . . . . . . . . . . . . . . . . . Max Security . | . . . . . . . . . . . . . . . . . Peak Influence 1292 | . 76 31 174 55 1164 972 434 234 56 686 455 282 1292 1015 343 1130 Initial 632 | . . 18 . 55 35 567 434 179 56 . 365 123 67 632 337 98 Average 428 | . 22 5 103 55 673 762 333 171 14 204 387 235 706 842 238 564 Influence Increases 9149 | . 136 73 331 . 1169 725 428 200 30 1167 354 240 1929 585 26 1756 Destroy 0b10 Robot/C 4500 | . 100 40 220 . 600 460 200 80 . 640 160 80 740 320 . 860 Destroy 0b10 Robot/NC 335 | . . . 35 . . 15 35 20 . 15 10 10 60 10 . 125 Destroy Leader 778 | . 20 20 46 . 20 124 64 24 . 50 . . 176 42 . 192 Allied During Kill 1174 | . . . . . 34 26 . . . 376 170 90 478 . . . Successful Hack 259 | . . 12 . . 7 . 14 8 8 7 . . 28 44 . 131 Select Force Hacks 100 | . . . . . . . . . . . . . 100 . . . Disable Machine 435 | . . . 15 . 15 30 90 45 . . . 30 105 15 . 90 Anti-Garrison Action 350 | . . . . . 350 . . . . . . . . . . . Destroy Structure 873 | . 1 1 . . 68 25 25 23 22 64 14 30 152 94 26 328 Lose Combat Pursuer 345 | . 15 . 15 . 75 45 . . . 15 . . 90 60 . 30 Influence Decreases 8033 | . 90 119 198 78 60 933 1016 453 145 513 699 356 830 914 848 781 Entered New Map 3423 | . . 28 . 78 20 597 522 189 59 . 289 186 126 660 626 43 Time Decay 3860 | . 90 91 198 . . 286 494 254 86 413 270 150 514 254 222 538 Lost Part 310 | . . . . . 40 10 . 10 . 20 . . 30 . . 200 Lost Ally 440 | . . . . . . 40 . . . 80 140 20 160 . . . Squads Dispatched 43 | . 1 . 2 . . 8 5 1 . 2 . . 12 3 . 9 Investigation 8 | . 1 . 1 . . 1 . . . 1 . . 4 . . . Extermination 9 | . . . . . . . 3 1 . . . . 2 1 . 2 Reinforcement 17 | . . . 1 . . 4 2 . . 1 . . 3 2 . 4 Assault 9 | . . . . . . 3 . . . . . . 3 . . 3 Garrison . | . . . . . . . . . . . . . . . . . Intercept . | . . . . . . . . . . . . . . . . . Searches Triggered . | . . . . . . . . . . . . . . . . . Construction Impeded 4 | . . . . . . 1 . . . 1 . . . 1 . 1 Haulers Reinforced 3 | . . . . . . . 1 . . . . . . 1 . 1 Active Scanning Responses . | . . . . . . . . . . . . . . . . . Cargo Convoy Interrupts . | . . . . . . . . . . . . . . . . . Stealth | -11 -10 -9 -9 -8 -8 -8 -7 -6 -5 -5 -5 -5 -5 -4 -4 -4 --------- Run | Yrd Mat Mat Sto Mat Gar Mat Fac Fac Fac Ext Cet Arc Hub Fac Was Fac Distress Signals 17 | . . . 1 . . 4 1 . . 4 2 . 1 3 . 1 Communications Jammed 78 | . . . . . . . . . . . . . . . . 78 Distress Signals 76 | . . . . . . . . . . . . . . . . 76 Times Spotted 316 | . 8 2 16 . 32 48 17 7 1 28 11 13 57 16 6 54 Peak Tracking Total 11 | . 3 1 5 . 4 9 4 3 1 5 5 2 10 11 2 8 Tactical Retreats 14 | . 1 . 1 . 3 3 . . . 1 . . 2 1 . 2 Traps | -11 -10 -9 -9 -8 -8 -8 -7 -6 -5 -5 -5 -5 -5 -4 -4 -4 ------- Run | Yrd Mat Mat Sto Mat Gar Mat Fac Fac Fac Ext Cet Arc Hub Fac Was Fac Traps Triggered 17 | . 1 1 3 . 5 1 . . . 3 . . . 1 . 2 Indirectly . | . . . . . . . . . . . . . . . . . Trap Hack Attempts . | . . . . . . . . . . . . . . . . . Triggered . | . . . . . . . . . . . . . . . . . Disarmed . | . . . . . . . . . . . . . . . . . Reprogrammed . | . . . . . . . . . . . . . . . . . Reused . | . . . . . . . . . . . . . . . . . Traps Extracted . | . . . . . . . . . . . . . . . . . Installed . | . . . . . . . . . . . . . . . . . Triggered . | . . . . . . . . . . . . . . . . . Machines | -11 -10 -9 -9 -8 -8 -8 -7 -6 -5 -5 -5 -5 -5 -4 -4 -4 ---------- Run | Yrd Mat Mat Sto Mat Gar Mat Fac Fac Fac Ext Cet Arc Hub Fac Was Fac Machines Disabled 34 | . . . 1 . 6 2 6 3 . . . 2 7 1 . 6 Max in Single Turn 4 | . . . 1 . 1 1 4 2 . . . 1 2 1 . 1 Garrison Access 2 | . . . . . . . . . . . . . 1 . . 1 Garrison Relay 5 | . . . . . 5 . . . . . . . . . . . Network Hub 2 | . . . . . . . . . . . . . 2 . . . Machines Repaired . | . . . . . . . . . . . . . . . . . Machines Dismantled . | . . . . . . . . . . . . . . . . . Machines Sabotaged 2 | . . . . . . . . . . . . . 2 . . . Overloaded Fab Kills . | . . . . . . . . . . . . . . . . . Hacking | -11 -10 -9 -9 -8 -8 -8 -7 -6 -5 -5 -5 -5 -5 -4 -4 -4 --------- Run | Yrd Mat Mat Sto Mat Gar Mat Fac Fac Fac Ext Cet Arc Hub Fac Was Fac Machines Accessed 43 | . . 1 1 1 3 . 7 4 1 7 . . 5 4 . 9 Terminals 33 | . . . 1 . 3 . 5 3 1 7 . . 5 1 . 7 Fabricators 1 | . . . . . . . 1 . . . . . . . . . Repair Stations 2 | . . . . . . . . . . . . . . 2 . . Recycling Units 1 | . . . . . . . . . . . . . . . . 1 Scanalyzers 4 | . . 1 . . . . 1 1 . . . . . 1 . . Garrison Access 2 | . . . . 1 . . . . . . . . . . . 1 Total Hacks 128 | . . 3 1 1 5 . 10 7 2 12 . . 18 24 . 45 Successful 44 | . . 1 1 1 1 . 2 3 1 4 . . 8 9 . 13 Failed 83 | . . 2 . . 4 . 8 4 1 8 . . 10 14 . 32 Catastrophic 21 | . . . . . 1 . 5 . . 2 . . 3 2 . 8 Database Lockouts 1 | . . . . . . . . . . . . . . 1 . . Manual 34 | . . . . . . . 4 1 2 . 1 . 9 2 . 15 Terminals 90 | . . . 1 . 5 . 7 4 2 12 . . 18 2 . 39 Fabricators 1 | . . . . . . . 1 . . . . . . . . . Repair Stations 19 | . . . . . . . . . . . . . . 19 . . Recycling Units 4 | . . . . . . . . . . . . . . . . 4 Scanalyzers 11 | . . 3 . . . . 2 3 . . . . . 3 . . Garrison Access 3 | . . . . 1 . . . . . . . . . . . 2 Terminal Hacks 21 | . . . 1 . 1 . . 2 1 4 . . 4 . . 8 Prototype ID Bank 1 | . . . . . . . . . . . . . 1 . . . Open Door 6 | . . . 1 . 1 . . . . 4 . . . . . . Level Access Points 3 | . . . . . . . . 1 . . . . 1 . . 1 Branch Access Points 3 | . . . . . . . . 1 1 . . . . . . 1 Terminal Index 1 | . . . . . . . . . . . . . . . . 1 Alert Level 2 | . . . . . . . . . . . . . . . . 2 Locate Traps 2 | . . . . . . . . . . . . . 1 . . 1 Registered Components 1 | . . . . . . . . . . . . . . . . 1 Registered Prototypes 1 | . . . . . . . . . . . . . . . . 1 Zone Layout 1 | . . . . . . . . . . . . . 1 . . . Fabricator Hacks . | . . . . . . . . . . . . . . . . . Repair Station Hacks 8 | . . . . . . . . . . . . . . 8 . . Scan Component 5 | . . . . . . . . . . . . . . 5 . . Repair 3 | . . . . . . . . . . . . . . 3 . . Recycling Unit Hacks 1 | . . . . . . . . . . . . . . . . 1 Retrieve Components 1 | . . . . . . . . . . . . . . . . 1 Scanalyzer 3 | . . 1 . . . . . 1 . . . . . 1 . . Retrieve Study 3 | . . 1 . . . . . 1 . . . . . 1 . . Garrison Access Hacks 2 | . . . . 1 . . . . . . . . . . . 1 Unlock Access 1 | . . . . 1 . . . . . . . . . . . . Seal Access 1 | . . . . . . . . . . . . . . . . 1 Unauthorized Hacks 9 | . . . . . . . 2 . . . . . 4 . . 3 Terminals 8 | . . . . . . . 1 . . . . . 4 . . 3 Botnet 5 | . . . . . . . 1 . . . . . 1 . . 3 Sabotage 3 | . . . . . . . . . . . . . 3 . . . Fabricators 1 | . . . . . . . 1 . . . . . . . . . Liberate 1 | . . . . . . . 1 . . . . . . . . . Repair Stations . | . . . . . . . . . . . . . . . . . Recycling Units . | . . . . . . . . . . . . . . . . . Scanalyzers . | . . . . . . . . . . . . . . . . . Garrison Access . | . . . . . . . . . . . . . . . . . Data Cores Recovered . | . . . . . . . . . . . . . . . . . Used . | . . . . . . . . . . . . . . . . . Hacking Detections 34 | . . 1 . . 3 . 7 3 1 4 . . 3 3 . 9 Full Trace Events 1 | . . . . . . . . . . . . . 1 . . . Feedback Events 1 | . . . . . . . . . . . . . 1 . . . Corruption 1 | . . . . . . . . . . . . . 1 . . . Feedback Blocked . | . . . . . . . . . . . . . . . . . Robot Schematics Acquired . | . . . . . . . . . . . . . . . . . Robots Built . | . . . . . . . . . . . . . . . . . Authchips . | . . . . . . . . . . . . . . . . . Time . | . . . . . . . . . . . . . . . . . Total Robot Build Rating . | . . . . . . . . . . . . . . . . . Part Schematics Acquired . | . . . . . . . . . . . . . . . . . Parts Built . | . . . . . . . . . . . . . . . . . Authchips . | . . . . . . . . . . . . . . . . . Time . | . . . . . . . . . . . . . . . . . Total Part Build Rating . | . . . . . . . . . . . . . . . . . Part Studies Acquired 3 | . . 1 . . . . . 1 . . . . . 1 . . Parts Repaired 3 | . . . . . . . . . . . . . . 3 . . Time 109 | . . . . . . . . . . . . . . 109 . . Parts Recycled . | . . . . . . . . . . . . . . . . . Recycled Matter . | . . . . . . . . . . . . . . . . . Retrieved Matter . | . . . . . . . . . . . . . . . . . Retrieved Components 8 | . . . . . . . . . . . . . . . . 8 Parts Scanalyzed . | . . . . . . . . . . . . . . . . . Part Schematics Acquired . | . . . . . . . . . . . . . . . . . Parts Damaged . | . . . . . . . . . . . . . . . . . Bothacking | -11 -10 -9 -9 -8 -8 -8 -7 -6 -5 -5 -5 -5 -5 -4 -4 -4 ------------ Run | Yrd Mat Mat Sto Mat Gar Mat Fac Fac Fac Ext Cet Arc Hub Fac Was Fac Used RIF Installer . | . . . . . . . . . . . . . . . . . Robots Hacked . | . . . . . . . . . . . . . . . . . Non-combat . | . . . . . . . . . . . . . . . . . Combat . | . . . . . . . . . . . . . . . . . Robot Hacks Applied . | . . . . . . . . . . . . . . . . . Relay Couplers Released 25 | . . . . . 24 . . . . . . . 1 . . . Machine Destruction 21 | . . . . . 20 . . . . . . . 1 . . . Programmers 4 | . . . . . 4 . . . . . . . . . . . Fabnet Peak Effective % . | . . . . . . . . . . . . . . . . . Robots Rewired 21 | . . . . . 3 . . . . 18 . . . . . . Allies Hacked . | . . . . . . . . . . . . . . . . . Hacks Repelled . | . . . . . . . . . . . . . . . . . Allies | -11 -10 -9 -9 -8 -8 -8 -7 -6 -5 -5 -5 -5 -5 -4 -4 -4 -------- Run | Yrd Mat Mat Sto Mat Gar Mat Fac Fac Fac Ext Cet Arc Hub Fac Was Fac Total Allies 32 | . . . . . 3 . . . . 24 5 . . . . . Largest Group 15 | . . . . . 3 2 . . . 15 15 9 9 . . . Highest-Rated Group 785 | . . . . . 89 64 . . . 559 785 590 590 . . . Highest-Rated Ally 159 | . . . . . 39 39 . . . 159 159 96 96 . . . Initial Warlord ECA Mod 9 | . . . . . . 9 8 7 6 6 6 6 6 5 5 5 Total Orders 16 | . . . . . . . . . . . 5 2 9 . . . STAY 8 | . . . . . . . . . . . 3 1 4 . . . FOLLOW 8 | . . . . . . . . . . . 2 1 5 . . . Ally Attacks 332 | . . . . . 19 23 . . . 103 75 15 97 . . . Total Damage 8859 | . . . . . 154 414 . . . 2081 1462 603 4145 . . . Kills 43 | . . . . . 3 5 . . . 12 7 3 13 . . . Allies Corrupted . | . . . . . . . . . . . . . . . . . Allies Melted 2 | . . . . . 1 . . . . . 1 . . . . . Intel | -11 -10 -9 -9 -8 -8 -8 -7 -6 -5 -5 -5 -5 -5 -4 -4 -4 ------- Run | Yrd Mat Mat Sto Mat Gar Mat Fac Fac Fac Ext Cet Arc Hub Fac Was Fac Active Infowar (turns) 6243 | . . . . . . . 1215 545 342 1428 17 57 818 414 10 1397 Optics 1 | . . . . . . . . . . . . . . . . 1 Sensors 4356 | . . . . . . . 1215 545 299 1411 17 57 626 22 . 164 Terrain 2199 | . . . . . . . . . 341 57 . 55 571 414 10 751 Jamming 1133 | . . . . . . . . . . . . . . . . 1133 Robot Analysis Total . | . . . . . . . . . . . . . . . . . Derelict Logs Recovered . | . . . . . . . . . . . . . . . . . Drone Launches . | . . . . . . . . . . . . . . . . . Drone Recoveries . | . . . . . . . . . . . . . . . . . Exploration | -11 -10 -9 -9 -8 -8 -8 -7 -6 -5 -5 -5 -5 -5 -4 -4 -4 ------------- Run | Yrd Mat Mat Sto Mat Gar Mat Fac Fac Fac Ext Cet Arc Hub Fac Was Fac Turns Passed 12309 | 8 389 412 509 16 1659 623 1315 549 349 1592 589 308 1417 557 479 1538 Spaces Moved 6978 | 7 175 194 236 8 1055 344 932 393 246 899 247 87 894 284 233 744 Core . | . . . . . . . . . . . . . . . . . Treads . | . . . . . . . . . . . . . . . . . Legs 6914 | 7 175 194 236 8 1055 344 932 393 246 899 247 87 894 284 233 680 Wheels 64 | . . . . . . . . . . . . . . . . 64 Hover . | . . . . . . . . . . . . . . . . . Flight . | . . . . . . . . . . . . . . . . . Fastest Speed 102 | 120 120 175 120 120 108 108 117 125 126 120 120 120 120 108 108 102 Average Speed 125 | 120 188 183 142 137 116 116 122 126 126 122 120 120 121 111 108 127 Slowest Speed 190 | 120 190 190 185 190 185 117 125 127 126 126 120 120 190 120 108 184 Overloaded Moves . | . . . . . . . . . . . . . . . . . Propulsion Burnouts . | . . . . . . . . . . . . . . . . . Robots Hopped . | . . . . . . . . . . . . . . . . . Potential Cave-ins 4 | . . . . . . . . . . . . . . . . 4 Cave-ins Triggered . | . . . . . . . . . . . . . . . . . Exploration Rate (%) 40 | 2 32 20 52 3 90 47 30 12 7 86 56 70 66 7 82 26 Regions Visited 16 Branch Regions 5 Pre-discovered Areas . | . . . . . . . . . . . . . . . . . Known Exits Taken 8 | . . . . 1 . . 1 1 1 1 1 1 1 . . . Unknown Exits Taken 5 | 1 1 1 1 . . 1 . . . . . . . . . . Scrap Searched . | . . . . . . . . . . . . . . . . . Spaces Dug 77 | . . . . . 13 . 6 . 9 1 . 4 12 10 3 19 Terrain Destroyed 452 | . . 1 . . 13 16 24 30 11 30 7 15 50 43 13 199 Melee 16 | . . . . . 13 . 3 . . . . . . . . . Projectile 291 | . . 1 . . . 8 4 6 11 30 7 15 50 24 13 122 AOE 145 | . . . . . . 8 17 24 . . . . . 19 . 77 Terrain Rammed . | . . . . . . . . . . . . . . . . . Walls Destroyed . | . . . . . . . . . . . . . . . . . Machines Disabled . | . . . . . . . . . . . . . . . . . Actions | -11 -10 -9 -9 -8 -8 -8 -7 -6 -5 -5 -5 -5 -5 -4 -4 -4 --------- Run | Yrd Mat Mat Sto Mat Gar Mat Fac Fac Fac Ext Cet Arc Hub Fac Was Fac Total 9220 | 6 211 225 323 12 1292 444 1050 428 272 1276 460 253 1066 449 392 1061 Wait 739 | . 7 . 5 . 25 15 15 . 9 99 131 134 28 74 117 80 Move 6964 | 6 174 193 235 8 1054 343 931 392 245 898 246 86 893 284 232 744 Hop . | . . . . . . . . . . . . . . . . . Pick Up 117 | . 8 8 8 1 6 5 19 5 2 7 2 3 8 12 1 22 Fast Attach 75 | . 2 1 5 . 2 3 6 2 . 6 4 3 13 6 3 19 Attach 39 | . . 2 . 2 3 1 . 3 2 2 2 1 3 5 . 13 Detach 17 | . 1 . 5 . 1 . 1 1 . 1 . . 3 2 . 2 Swap 129 | . 1 3 5 1 8 6 12 6 3 19 3 4 19 14 3 22 Drop 149 | . 5 5 12 . 5 10 26 7 . 18 6 4 19 12 4 16 Fire 677 | . 13 13 46 . 84 55 34 9 11 50 63 18 78 39 32 132 Melee 30 | . . . . . 25 1 4 . . . . . . . . . Ram 1 | . . . . . . . . . . . . . . . . 1 Kick 29 | . . . 2 . . 5 2 3 . 4 . . 2 1 . 10 Crush . | . . . . . . . . . . . . . . . . . Escape Stasis 18 | . . . . . 15 . . . . 3 . . . . . . Rewire 236 | . . . . . 64 . . . . 169 3 . . . . . Trap . | . . . . . . . . . . . . . . . . . Miscellaneous . | . . . . . . . . . . . . . . . . . Route ------- -11/Scrapyard -10/Materials -9/Materials (discovered 2 exits: [*Min] / *Sto) -9/Storage -8/Materials -8/Garrison (discovered 3 exits: [*Mat x3]) -8/Materials -7/Factory -6/Factory (discovered 6 exits: *Fac x4 / Low x2) -5/Factory (discovered 4 exits: Upp x2 / *Ext x2) -5/Extension (discovered 2 exits: *Fac / *Cet) -5/Cetus (discovered 2 exits: *Fac / *Arc) -5/Archives (discovered 2 exits: *Fac / *Hub) -5/Hub_04(d) (discovered 4 exits: *Fac x4) -4/Factory -4/Waste -4/Factory (discovered 7 exits: Res x4 / Upp x2 / Arm) History --------- Turn | Location | Event 1 | -11/Scrapyard | Discovered new exit (range 2) 9 | -11/Scrapyard | Entered Materials 303 | -10/Materials | Build established: Mutant 362 | -10/Materials | Discovered new exit (range 12) 398 | -10/Materials | Entered another Materials area 398 | -9/Materials | Evolved 2 slots: Propulsion x1, Utility x1 554 | -9/Materials | Discovered new exit (range 10) 665 | -9/Materials | Discovered new exit (range 16) 810 | -9/Materials | Entered Storage 1312 | -9/Storage | Discovered new exit (range 7) 1319 | -9/Storage | Entered Materials 1319 | -8/Materials | Evolved 2 slots: Propulsion x1, Weapon x1 1335 | -8/Materials | Identified exit to Garrison 1335 | -8/Materials | Entered Garrison 1383 | -8/Garrison | Triggered checkpoint 1521 | -8/Garrison | Triggered checkpoint 1558 | -8/Garrison | Garrison Relay disabled 1617 | -8/Garrison | Build established: Gunner 1689 | -8/Garrison | Triggered checkpoint 1786 | -8/Garrison | Discovered new exit (range 12) 1831 | -8/Garrison | Triggered checkpoint 1841 | -8/Garrison | Garrison Relay disabled 1933 | -8/Garrison | Triggered checkpoint 1997 | -8/Garrison | Triggered checkpoint 2016 | -8/Garrison | Garrison Relay disabled 2046 | -8/Garrison | Discovered new exit (range 11) 2230 | -8/Garrison | Triggered checkpoint 2337 | -8/Garrison | Triggered checkpoint 2392 | -8/Garrison | Garrison Relay disabled 2470 | -8/Garrison | Discovered new exit (range 12) 2610 | -8/Garrison | Garrison Relay disabled 2994 | -8/Garrison | Entered Materials 2994 | -8/Materials | Accompanied by 2 allies 2996 | -8/Materials | Build established: Scavenger-Mutant 3328 | -8/Materials | Build established: Gunner 3394 | -8/Materials | First assault squad dispatched 3606 | -8/Materials | Discovered new exit (range 10) 3617 | -8/Materials | Entered Factory 3617 | -7/Factory | Evolved 2 slots: Utility x2 4008 | -7/Factory | Build established: Skirmisher 4916 | -7/Factory | Discovered new exit (range 14) 4931 | -7/Factory | Identified exit to Factory 4932 | -7/Factory | Entered another Factory area 4932 | -6/Factory | Evolved 2 slots: Utility x2 5136 | -6/Factory | Found Prototype Processor 5136 | -6/Factory | Identified Exp. Targeting Computer 5145 | -6/Factory | Found Exp. Targeting Computer 5230 | -6/Factory | Build established: Gunner 5278 | -6/Factory | Identified exit to Factory 5278 | -6/Factory | Identified exit to Lower Caves 5481 | -6/Factory | Entered another Factory area 5481 | -5/Factory | Evolved 2 slots: Propulsion x1, Utility x1 5575 | -5/Factory | Identified exit to Upper Caves 5575 | -5/Factory | Identified exit to Extension 5830 | -5/Factory | Entered Extension 6452 | -5/Extension | Rescued a captive Derelict 6487 | -5/Extension | Rescued a captive Derelict 6490 | -5/Extension | Rescued a captive Derelict 6563 | -5/Extension | Build established: Commander-Gunner 6718 | -5/Extension | Spotted B-75 Beast 6730 | -5/Extension | Spotted B-75 Beast 6733 | -5/Extension | Allies destroyed B-75 Beast 6748 | -5/Extension | Destroyed B-75 Beast 6775 | -5/Extension | Lost 7 allies 6812 | -5/Extension | Rescued A7 6940 | -5/Extension | Rescued a captive Derelict 6942 | -5/Extension | Rescued a captive Derelict 7360 | -5/Extension | Discovered new exit (range 10) 7361 | -5/Extension | Discovered new exit (range 6) 7371 | -5/Extension | Identified exit to Factory 7376 | -5/Extension | Identified exit to Cetus 7422 | -5/Extension | Entered Cetus 7422 | -5/Cetus | Accompanied by 15 allies (A7) 7427 | -5/Cetus | Acquired a Cetus Manufacturing Module code from A7 7447 | -5/Cetus | Spotted Cetus Guard 7447 | -5/Cetus | Spotted Cetus Guard 7447 | -5/Cetus | Destroyed Cetus Guard 7451 | -5/Cetus | Spotted Cetus Guard 7464 | -5/Cetus | Allies destroyed Cetus Guard 7464 | -5/Cetus | Spotted Cetus Guard 7472 | -5/Cetus | Destroyed Cetus Guard 7475 | -5/Cetus | Allies destroyed Cetus Guard 7503 | -5/Cetus | Lost 4 allies 7602 | -5/Cetus | Started Cetus Manufacturing Module 7616 | -5/Cetus | Discovered new exit (range 16) 7627 | -5/Cetus | Manufactured an Enhanced Grunt 7648 | -5/Cetus | Spotted Cetus Guard 7648 | -5/Cetus | Spotted Cetus Guard 7650 | -5/Cetus | Spotted Cetus Guard 7652 | -5/Cetus | Manufactured an Enhanced Grunt 7652 | -5/Cetus | Allies destroyed Cetus Guard 7656 | -5/Cetus | Spotted Cetus Guard 7657 | -5/Cetus | Allies destroyed Cetus Guard 7664 | -5/Cetus | Allies destroyed Cetus Guard 7670 | -5/Cetus | Allies destroyed Cetus Guard 7676 | -5/Cetus | Discovered exit to Factory (range 16) 7677 | -5/Cetus | Manufactured an Enhanced Grunt 7682 | -5/Cetus | Met Revision 17 7699 | -5/Cetus | Lost 4 allies 7702 | -5/Cetus | Manufactured an Enhanced Grunt 7727 | -5/Cetus | Manufactured an Enhanced Grunt 7916 | -5/Cetus | Murdered A7 7918 | -5/Cetus | Extracted ID and sensor layout for unrecognized location from A7's data core 7921 | -5/Cetus | Found Corrupted Prototype Protection 7921 | -5/Cetus | Identified Med. Regenerative Plating 7984 | -5/Cetus | Identified exit to Archives 8011 | -5/Cetus | Entered Archives 8011 | -5/Archives | Accompanied by 10 allies 8054 | -5/Archives | Discovered exit to Factory (range 15) 8095 | -5/Archives | Discovered new exit (range 15) 8291 | -5/Archives | Identified exit to Hub_04(d) 8319 | -5/Archives | Entered Hub_04(d) 8319 | -5/Hub_04(d) | Accompanied by 9 allies 8545 | -5/Hub_04(d) | Build established: Commander-Skirmisher 8558 | -5/Hub_04(d) | P-70 Sage assimilated allied S6-OUL(g) 8703 | -5/Hub_04(d) | Network Hub disabled 8748 | -5/Hub_04(d) | Network Hub disabled 8749 | -5/Hub_04(d) | Spotted Lightning 8753 | -5/Hub_04(d) | Spotted Lightning 8754 | -5/Hub_04(d) | Spotted Lightning 8760 | -5/Hub_04(d) | Allies destroyed Lightning 8761 | -5/Hub_04(d) | Destroyed Lightning 8771 | -5/Hub_04(d) | Allies destroyed Lightning 8792 | -5/Hub_04(d) | Lost 4 allies 8798 | -5/Hub_04(d) | System corruption reached 10% 8813 | -5/Hub_04(d) | Found Prototype Device 8813 | -5/Hub_04(d) | Identified Exp. EM Shield 9073 | -5/Hub_04(d) | Build established: Scavenger-Gunner 9140 | -5/Hub_04(d) | Found Prototype Device 9140 | -5/Hub_04(d) | Identified Exp. Thermal Shield 9219 | -5/Hub_04(d) | First assault squad dispatched 9639 | -5/Hub_04(d) | Spotted Lightning 9641 | -5/Hub_04(d) | Spotted Lightning 9643 | -5/Hub_04(d) | Spotted Lightning 9736 | -5/Hub_04(d) | Entered Factory 9736 | -4/Factory | Evolved 2 slots: Power x1, Weapon x1 9792 | -4/Factory | Discovered new exit (range 17) 9843 | -4/Factory | Central database locked down 9991 | -4/Factory | Repaired Adv. Plasma Cannon+ 10019 | -4/Factory | Repaired Magnetic Acceleration Cannon 10184 | -4/Factory | Repaired Broken Enh. Armored Leg 10293 | -4/Factory | Sucked down chute 10293 | -4/Factory | Entered Waste 10308 | -4/Waste | EMP discharged 10336 | -4/Waste | Spotted C-40 Crusher 10345 | -4/Waste | Spotted C-40 Crusher 10408 | -4/Waste | EMP discharged 10408 | -4/Waste | System corruption reached 10% 10413 | -4/Waste | Destroyed C-40 Crusher 10439 | -4/Waste | Spotted C-40 Crusher 10449 | -4/Waste | Destroyed C-40 Crusher 10503 | -4/Waste | Destroyed C-40 Crusher 10508 | -4/Waste | EMP discharged 10526 | -4/Waste | Spotted C-40 Crusher 10540 | -4/Waste | Destroyed C-40 Crusher 10543 | -4/Waste | Spotted C-40 Crusher 10608 | -4/Waste | EMP discharged 10608 | -4/Waste | System corruption reached 30% 10620 | -4/Waste | Destroyed C-40 Crusher 10634 | -4/Waste | Spotted C-40 Crusher 10659 | -4/Waste | Destroyed C-40 Crusher 10708 | -4/Waste | EMP discharged 10759 | -4/Waste | Discovered new exit (range 13) 10772 | -4/Waste | Entered Factory 10963 | -4/Factory | Identified exit to Research 11085 | -4/Factory | Identified exit to Upper Caves 11085 | -4/Factory | Identified exit to Armory 11115 | -4/Factory | Spotted B-86 Titan 11347 | -4/Factory | Lost 3 parts (1n2w) 11904 | -4/Factory | Lost 3 parts (1p2w) 11985 | -4/Factory | Destroyed 8 combat bots 12214 | -4/Factory | Lost 5 parts (3n2w) 12272 | -4/Factory | First assault squad dispatched 12310 | -4/Factory | Self-destructed Last Messages --------------- 12216_ System corrupted: IFF burst signal emitted. 12218_ O-24 Administrator: "IFF HANDSHAKE FAILED. SECURING TERMINAL." 12219_ System corrupted: Enh. Gauss Cannon jammed. 12223_ O-24 Administrator destroyed. 12225_ K-01 Serf collects debris. 12231_ R-10 Processor collects Hacking Suite. 12232_ BGLVWVXX OQT,T:9/MLSHM:R18JADT1VT/#M2U 12235_ R-10 Processor collects Imp. Hover Unit. 12247_ L|CIZO>V 44:DG%|Y33 YTERVIVFRBX3A9%SN 12250_ ALERT: Security rotation in progress. 12255_ Acquired Imp. Shield Generator. 12268_ P7SNND6A=MXP|12D5RSTBN